bitfinex/quotes_SOLUSD_20260211
["timestamp","ask_amount","ask_price","bid_price","bid_amount"]
[1770820867491,19.45285281,81.1,81.075,2.17416236]
[1770820867677,19.45285281,81.09,81.06,0.1]
[1770820867875,19.45285281,81.07,81.06,0.1]
[1770820868200,2.14923427,81.109,81.061,2.17416236]
[1770820868391,19.45285281,81.07,81.06,0.1]
[1770820868585,2.14923427,81.121,81.06,0.1]
[1770820868775,19.45285281,81.08,81.06,0.1]
[1770820868983,19.45285281,81.07,81.06,0.1]
[1770820869201,19.45285281,81.07,81.031,2.17416236]
[1770820869779,17.22,81.122,81.04,19.45285281]
[1770820869780,19.45285281,81.08,81.04,19.45285281]
[1770820869979,19.45285281,81.09,81.051,2.17416236]
[1770820870179,19.45285281,81.06,81.037,2.17416236]
[1770820870911,19.45285281,81.05,81.037,2.17416236]
[1770820871106,19.45285281,81.05,81.02,0.1]
[1770820871310,19.45285281,81.04,81.02,0.1]
[1770820871597,2.14923427,81.057,81.02,0.1]
[1770820871799,19.45285281,81.04,81.02,0.1]
[1770820872004,19.45285281,81.03,81.02,0.1]
[1770820872192,19.45285281,81.04,81.02,0.1]
[1770820872389,19.45285281,81.03,81.02,0.1]
[1770820872926,2.14923427,81.029,81.005,6.23744188]
[1770820873204,2.14923427,81.009,80.957,2.17416236]
[1770820873384,2.14923427,80.989,80.925,2.17416236]
[1770820873594,5.36086188,81.025,80.908,2.17416236]
[1770820873595,19.45285281,80.94,80.908,2.17416236]
[1770820873786,19.45285281,80.92,80.908,2.17416236]
[1770820873990,2.14923427,80.954,80.908,2.17416236]
[1770820874215,19.45285281,80.92,80.908,2.17416236]
[1770820874389,2.26464993,80.919,80.801,8.22917996]
[1770820874589,2.26464993,80.919,80.7,19.45285281]
[1770820874590,19.45285281,80.86,80.811,6.41648868]
[1770820874811,2.26464993,80.909,80.85,19.45285281]
[1770820875109,2.26464993,80.927,80.87,19.45285281]
[1770820875311,19.45285281,80.91,80.854,21.16]
[1770820875483,19.45285281,80.89,80.85,19.45285281]
[1770820875803,2.26464993,80.91,80.86,19.45285281]
[1770820876027,2.26464993,80.91,80.835,4.61729252]
[1770820876028,19.45285281,80.89,80.85,19.45285281]
[1770820876192,21.71750274,80.92,80.823,0.2504715]
[1770820876394,19.45285281,80.9,80.85,19.45285281]
[1770820876593,2.26464993,80.899,80.86,19.45285281]
[1770820877496,2.26464993,80.949,80.89,19.45285281]
[1770820877693,2.26464993,80.939,80.88,19.45285281]
[1770820877913,2.26464993,80.929,80.872,29.4]
[1770820878118,19.45285281,80.94,80.9,19.45285281]
[1770820878319,3.49,82.157,80.873,38.42]
[1770820878320,2.26464993,80.959,80.92,19.45285281]
[1770820878510,2.26464993,80.949,80.9,19.45285281]
[1770820878727,2.26464993,81.003,80.94,19.45285281]
[1770820879018,55.58,81.088,80.95,19.45285281]
[1770820879019,2.26464993,80.979,80.95,19.45285281]
[1770820879189,2.26464993,80.993,80.96,19.45285281]
[1770820879390,2.26464993,81.01,80.97,19.45285281]
[1770820879623,6.41489142,81.023,81.0,19.45285281]
[1770820879808,2.26464993,81.042,81.01,19.45285281]
[1770820879996,19.45285281,81.04,81.0,19.45285281]
[1770820880197,19.45285281,81.04,80.901,1.23607866]
[1770820880198,2.26464993,81.029,80.99,19.45285281]
[1770820880425,19.45285281,81.0,80.96,19.45285281]
[1770820880715,2.26464993,81.053,80.99,19.45285281]
[1770820880936,2.26464993,81.077,81.04,19.45285281]
[1770820881096,2.26464993,81.069,81.03,19.45285281]
[1770820881292,2.26464993,81.084,81.06,19.45285281]
[1770820881508,2.26464993,81.099,81.009,23.34]
[1770820881711,2.26464993,81.099,81.06,19.45285281]
[1770820881918,2.26464993,81.115,81.07,19.45285281]
[1770820882107,2.26464993,81.115,81.044,26.32]
[1770820882108,19.45285281,81.15,81.1,19.45285281]
[1770820882415,2.26464993,81.129,81.09,19.45285281]
[1770820882808,2.26464993,81.149,81.11,19.45285281]
[1770820883009,2.26464993,81.119,80.942,37.04]
[1770820883211,2.26464993,81.119,81.09,19.45285281]
[1770820883608,2.26464993,81.14,81.11,19.45285281]
[1770820883808,2.26464993,81.129,81.1,19.45285281]
[1770820884197,2.26464993,81.119,81.002,5.36086188]
[1770820884399,4.61729252,81.162,80.953,140.0]
[1770820884400,2.26464993,81.109,81.07,19.45285281]
[1770820884705,2.26464993,81.099,81.06,19.45285281]
[1770820884915,2.26464993,81.131,81.09,19.45285281]
[1770820885231,2.26464993,81.145,81.12,19.45285281]
[1770820885516,2.26464993,81.179,81.13,19.45285281]
[1770820885718,2.26464993,81.169,81.14,19.45285281]
[1770820885897,2.26464993,81.189,81.102,27.62]
[1770820886099,2.26464993,81.189,81.16,19.45285281]
[1770820886533,12.31709119,81.188,81.16,19.45285281]
[1770820886822,12.31709119,81.188,81.14,19.45285281]
[1770820886823,2.26464993,81.179,81.14,19.45285281]
[1770820887197,43.10981917,81.188,81.11,19.45285281]
[1770820887198,2.26464993,81.149,81.11,19.45285281]
[1770820887420,2.26464993,81.139,81.1,19.45285281]
[1770820888021,2.26464993,81.129,81.09,19.45285281]
[1770820888219,2.26464993,81.129,81.085,42.52]
[1770820888220,2.26464993,81.144,81.11,19.45285281]
[1770820888418,2.26464993,81.144,81.12,19.45285281]
[1770820888594,2.26464993,81.144,81.11,19.45285281]
[1770820888798,2.26464993,81.144,81.045,49.35513225]
[1770820888799,2.26464993,81.119,81.045,49.35513225]
[1770820889018,2.26464993,81.109,81.06,19.45285281]
[1770820889324,2.26464993,81.089,81.05,19.45285281]
[1770820890098,2.26464993,81.079,81.04,19.45285281]
[1770820890300,2.26464993,81.079,81.05,19.45285281]
[1770820890501,2.26464993,81.077,81.04,19.45285281]
[1770820890728,2.26464993,81.069,81.031,12.34095593]
[1770820891034,19.45285281,81.06,81.022,12.34219489]
[1770820891197,2.26464993,81.059,81.022,12.34219489]
[1770820891402,2.26464993,81.074,81.05,19.45285281]
[1770820891596,19.45285281,81.11,81.06,19.45285281]
[1770820891802,2.26464993,81.089,81.05,19.45285281]
[1770820892026,2.26464993,81.089,81.023,42.46]
[1770820892200,2.26464993,81.089,81.06,19.45285281]
[1770820892402,19.45285281,81.07,81.022,12.34219489]
[1770820892623,2.26464993,81.068,81.03,19.45285281]
[1770820892806,49.31691842,81.109,81.012,42.42]
[1770820892807,2.26464993,81.1,81.06,19.45285281]
[1770820893013,61.62720471,81.133,81.015,4.61729252]
[1770820893014,2.26464993,81.089,81.04,19.45285281]
[1770820893219,30.81769375,81.123,81.04,19.45285281]
[1770820893220,2.26464993,81.079,81.04,19.45285281]
[1770820894325,2.26464993,81.079,81.05,19.45285281]
[1770820894804,2.26464993,81.079,81.051,12.33791069]
[1770820895001,2.26464993,81.069,81.03,19.45285281]
[1770820895206,2.26464993,81.059,81.02,19.45285281]
[1770820895511,2.26464993,81.059,81.03,19.45285281]
[1770820895909,2.26464993,81.073,81.04,19.45285281]
[1770820896222,49.29623022,81.143,81.04,19.45285281]
[1770820896426,19.45285281,81.11,81.07,19.45285281]
[1770820896622,19.45285281,81.09,81.054,42.38]
[1770820896821,43.16777463,81.079,81.02,19.45285281]
[1770820897125,19.45285281,81.05,81.015,42.38]
[1770820897322,19.45285281,81.04,81.0,19.45285281]
[1770820897499,19.45285281,81.04,80.99,30.86782668]
[1770820897702,19.45285281,81.02,80.987,42.36]
[1770820897903,19.45285281,81.03,80.99,19.45285281]
[1770820898308,1.76447554,81.049,81.01,19.45285281]
[1770820898508,1.76447554,81.049,80.988,92.60631204]
[1770820898509,1.76447554,81.066,81.03,19.45285281]
[1770820898703,1.76447554,81.059,81.021,12.34247911]
[1770820898924,1.76447554,81.049,81.011,42.38]
[1770820899123,19.57282751,81.03,81.011,42.38]
[1770820899323,1.76447554,81.029,81.0,19.57282751]
[1770820900407,1.76447554,81.049,81.01,19.57282751]
[1770820900608,1.76447554,81.049,81.02,19.57282751]
[1770820900831,1.76447554,81.039,80.992,12.34689845]
[1770820901011,1.76447554,81.029,80.99,19.57282751]
[1770820901628,1.76447554,81.019,80.982,42.38]
[1770820901828,92.53675634,81.049,81.0,19.57282751]
[1770820901829,19.57282751,81.04,81.0,19.57282751]
[1770820902029,1.76447554,81.029,80.99,19.57282751]
[1770820902253,1.76447554,81.043,81.01,19.57282751]
[1770820902410,1.76447554,81.029,80.99,19.57282751]
[1770820902611,1.76447554,81.029,80.983,43.21894718]
[1770820902828,1.76447554,81.009,80.971,12.35010065]
[1770820903015,1.76447554,81.009,80.98,19.57282751]
[1770820903216,1.76447554,81.009,80.971,12.35010065]
[1770820903639,1.76447554,80.989,80.937,30.8878402]
[1770820903938,1.76447554,80.949,80.91,19.57282751]
[1770820904109,19.57282751,80.94,80.9,19.57282751]
[1770820904306,19.57282751,80.95,80.91,19.57282751]
[1770820904528,19.57282751,80.96,80.92,19.57282751]
[1770820904734,19.57282751,80.98,80.94,19.57282751]
[1770820905026,12.34888057,80.979,80.94,19.57282751]
[1770820905416,19.57282751,80.96,80.921,42.4]
[1770820905741,4.61729252,80.994,80.921,42.4]
[1770820905919,19.57282751,80.96,80.921,42.4]
[1770820906230,19.57282751,80.96,80.881,49.45503389]
[1770820906231,1.76447554,80.939,80.9,31.93375257]
[1770820906435,1.76447554,80.939,80.89,19.57282751]
[1770820906734,1.76447554,80.939,80.9,19.57282751]
[1770820906929,1.76447554,80.939,80.89,14.04107102]
[1770820907237,1.76447554,80.937,80.9,19.57282751]
[1770820907412,12.35513603,80.938,80.89,1.67860348]
[1770820907732,1.76447554,80.939,80.89,21.25143099]
[1770820907915,1.76447554,80.929,80.89,19.57282751]
[1770820908310,1.76447554,80.919,80.858,1.67860348]
[1770820908513,19.57282751,80.91,80.88,19.57282751]
[1770820908723,1.76447554,80.922,80.89,19.57282751]
[1770820908926,19.57282751,80.92,80.88,19.57282751]
[1770820909134,19.57282751,80.92,80.859,42.38]
[1770820909135,1.76447554,80.899,80.86,19.57282751]
[1770820909335,1.76447554,80.921,80.872,1.67860348]
[1770820909512,1.76447554,80.929,80.89,19.57282751]
[1770820909718,1.76447554,80.929,80.872,1.67860348]
[1770820910226,1.76447554,80.929,80.88,19.57282751]
[1770820910544,1.49437123,80.909,80.87,19.57282751]
[1770820910830,19.57282751,80.9,80.86,19.57282751]
[1770820911037,1.49437123,80.909,80.87,19.57282751]
[1770820911234,1.49437123,80.899,80.86,19.57282751]
[1770820911434,1.49437123,80.913,80.88,19.57282751]
[1770820911610,1.49437123,80.925,80.89,19.57282751]
[1770820912023,1.49437123,80.925,80.9,19.57282751]
[1770820912213,19.57282751,80.93,80.89,19.57282751]
[1770820912420,12.355701,80.935,80.89,19.57282751]
[1770820912619,1.49437123,80.934,80.89,19.57282751]
[1770820912821,1.49437123,80.929,80.89,19.57282751]
[1770820913022,12.35803704,80.919,80.883,12.36353745]
[1770820913211,1.49437123,80.938,80.89,19.57282751]
[1770820913417,1.49437123,80.959,80.92,19.57282751]
[1770820913627,1.49437123,80.939,80.9,19.57282751]
[1770820913813,1.49437123,80.939,80.91,19.57282751]
[1770820914012,1.49437123,80.952,80.92,19.57282751]
[1770820914316,1.49437123,80.952,80.91,19.57282751]
[1770820914317,19.57282751,80.95,80.91,19.57282751]
[1770820914517,1.49437123,80.952,80.92,19.57282751]
[1770820914723,19.57282751,80.95,80.91,19.57282751]
[1770820914919,1.49437123,80.949,80.91,19.57282751]
[1770820915237,1.49437123,80.939,80.91,19.57282751]
[1770820915414,19.57282751,80.95,80.91,19.57282751]
[1770820915613,49.39707925,80.977,80.907,42.36]
[1770820915614,1.49437123,80.939,80.907,42.36]
[1770820916013,1.49437123,80.929,80.876,1.46913971]
[1770820916237,1.49437123,80.919,80.877,43.82913971]
[1770820916537,19.57282751,80.94,80.9,19.57282751]
[1770820916714,12.35205955,80.959,80.92,19.57282751]
[1770820916913,1.49437123,80.958,80.92,19.57282751]
[1770820917132,12.35223637,80.957,80.921,12.35773161]
[1770820917317,1.49437123,80.958,80.92,19.57282751]
[1770820917518,1.49437123,80.956,80.91,43.80913971]
[1770820917717,1.49437123,80.956,80.92,19.57282751]
[1770820917934,1.49437123,80.956,80.93,19.57282751]
[1770820918123,1.49437123,80.956,80.92,19.57282751]
[1770820918327,19.57282751,80.95,80.91,61.91282751]
[1770820918636,1.49437123,80.939,80.91,42.34]
[1770820919014,13.84950726,80.938,80.91,42.34]
[1770820919238,1.49437123,80.937,80.91,42.34]
[1770820919434,1.49437123,80.937,80.91,61.91282751]
[1770820919634,19.57282751,80.96,80.92,19.57282751]
[1770820919933,1.49437123,81.005,80.95,19.57282751]
[1770820920114,19.57282751,80.98,80.951,42.38]
[1770820920310,1.49437123,80.989,80.96,19.57282751]
[1770820920531,1.49437123,81.009,80.97,19.57282751]
[1770820920721,1.49437123,80.989,80.95,19.57282751]
[1770820920921,19.57282751,80.99,80.95,19.57282751]
[1770820920922,1.49437123,80.979,80.95,19.57282751]
[1770820921134,1.49437123,80.977,80.945,12.35406757]
[1770820921328,1.49437123,80.993,80.96,19.57282751]
[1770820921516,19.57282751,80.98,80.886,49.45229758]
[1770820921711,1.49437123,80.969,80.93,19.57282751]
[1770820922530,21.06719874,80.96,80.921,1.46913971]
[1770820922733,21.06719874,80.96,80.92,19.57282751]
[1770820922734,1.49437123,80.959,80.92,19.57282751]
[1770820922925,19.57282751,80.97,80.93,19.57282751]
[1770820923233,1.49437123,80.969,80.92,19.57282751]
[1770820923532,1.49437123,80.959,80.92,19.57282751]
[1770820924230,43.22428463,80.973,80.92,19.57282751]
[1770820924434,1.49437123,80.985,80.921,1.46913971]
[1770820924815,1.49437123,80.989,80.95,19.57282751]
[1770820925015,12.34613627,80.997,80.97,19.57282751]
[1770820925223,1.49437123,80.998,80.97,19.57282751]
[1770820925427,1.49437123,80.998,80.963,12.35119393]
[1770820925428,1.49437123,81.023,80.99,19.57282751]
[1770820925627,1.49437123,81.037,81.0,19.57282751]
[1770820925932,1.49437123,81.029,80.983,42.38]
[1770820926123,12.33912861,81.043,81.01,19.57282751]
[1770820926436,1.49437123,81.029,80.991,42.38]
[1770820926939,0.2,81.05,81.02,19.57282751]
[1770820927251,1.49437123,81.047,81.01,19.57282751]
[1770820927943,1.49437123,81.039,81.005,42.34]
[1770820928112,12.33836738,81.048,81.01,19.57282751]
[1770820928446,19.77282751,81.05,81.01,19.57282751]
[1770820928647,1.49437123,81.039,81.005,42.34]
[1770820928858,12.33821515,81.049,81.02,19.57282751]
[1770820929028,12.33821515,81.049,81.021,12.34247911]
[1770820929327,12.33821515,81.049,81.02,19.57282751]
[1770820929328,0.2,81.05,81.02,19.57282751]
[1770820929534,1.49437123,81.039,81.001,12.34550305]
[1770820929729,1.49437123,81.029,81.002,42.34]
[1770820929929,1.49437123,81.029,81.002,40.87518493]
[1770820930246,92.53661364,81.049,80.966,1.46913971]
[1770820930247,1.49437123,81.019,80.966,1.46913971]
[1770820930447,1.49437123,81.009,80.97,19.57282751]
[1770820931042,1.49437123,81.009,80.97,12.56156256]
[1770820931225,1.49437123,81.008,80.98,12.56156256]
[1770820931427,96.83796661,81.041,80.971,12.35010065]
[1770820931428,12.56156256,81.01,80.971,12.35010065]
[1770820932038,1.49437123,81.018,80.98,12.56156256]
[1770820932732,12.34278379,81.019,80.96,12.56156256]
[1770820932733,1.49437123,80.999,80.96,12.56156256]
[1770820932924,154.28479737,81.019,80.95,61.92622045]
[1770820932925,1.49437123,80.989,80.95,61.92622045]
[1770820933127,12.34750827,80.988,80.96,19.60622045]
[1770820933329,19.60622045,81.01,80.97,19.60622045]
[1770820933642,1.49437123,81.044,81.0,21.07536016]
[1770820933944,19.60622045,81.04,81.001,42.34]
[1770820934141,1.49437123,81.044,81.01,19.60622045]
[1770820934536,1.49437123,81.045,81.0,19.60622045]
[1770820934751,19.60622045,81.04,81.0,19.60622045]
[1770820934946,1.49437123,81.161,81.001,1.46913971]
[1770820935149,1.49437123,81.161,80.878,45.7462525]
[1770820935150,19.60622045,81.01,80.879,62.23243442]
[1770820935329,19.60622045,80.95,80.9,19.60622045]
[1770820935533,18.79651748,80.93,80.88,19.60622045]
[1770820935734,6.40826211,80.952,80.87,19.60622045]
[1770820935941,6.40826211,80.952,80.841,12.36996078]
[1770820935942,19.60622045,80.9,80.867,42.78]
[1770820936137,6.40826211,80.952,80.845,42.78]
[1770820936339,2.24597202,80.899,80.85,19.60622045]
[1770820936550,2.24597202,80.879,80.823,0.2504715]
[1770820936746,5.36086188,80.916,80.823,0.2504715]
[1770820936747,2.24597202,80.859,80.823,0.2504715]
[1770820936947,2.24597202,80.859,80.84,19.60622045]
[1770820937149,2.24597202,80.859,80.841,12.36996078]
[1770820937357,19.60622045,80.9,80.85,19.60622045]
[1770820937647,19.60622045,80.91,80.86,19.60622045]
[1770820937950,19.60622045,80.9,80.851,42.8]
[1770820938327,12.3588007,80.914,80.88,19.60622045]
[1770820938649,19.60622045,80.92,80.88,19.60622045]
[1770820938831,19.60622045,80.91,80.87,19.60622045]
[1770820939139,12.35864796,80.915,80.87,19.60622045]
[1770820939345,1.49437123,80.914,80.87,19.60622045]
[1770820939541,19.60622045,80.91,80.87,19.60622045]
[1770820939777,1.49437123,80.909,80.87,19.60622045]
[1770820939935,1.49437123,80.909,80.853,42.78]
[1770820939936,1.49437123,80.909,80.88,19.60622045]
[1770820940137,1.49437123,80.909,80.867,12.36588428]
[1770820940331,1.49437123,80.909,80.87,19.60622045]
[1770820940532,1.41768696,80.899,80.86,19.60622045]
[1770820940844,1.41768696,80.899,80.87,19.60622045]
[1770820941040,1.41768696,80.879,80.824,12.3725447]
[1770820941229,1.41768696,80.869,80.82,19.70622045]
[1770820941424,1.41768696,80.859,80.82,19.70622045]
[1770820941652,43.27505624,80.878,80.799,6.32984651]
[1770820941653,1.41768696,80.829,80.799,6.32984651]
[1770820941829,47.84,80.864,80.77,19.60622045]
[1770820941830,1.41768696,80.809,80.77,19.60622045]
[1770820942025,1.41768696,80.799,80.747,1.46605651]
[1770820942229,1.41768696,80.833,80.78,19.60622045]
[1770820942442,1.41768696,80.819,80.78,19.60622045]
[1770820942650,1.41768696,80.839,80.8,19.60622045]
[1770820942839,1.41768696,80.829,80.79,19.60622045]
[1770820943040,1.41768696,80.799,80.75,0.1]
[1770820943245,1.41768696,80.787,80.75,0.1]
[1770820943447,12.37593128,80.802,80.77,19.60622045]
[1770820943634,1.41768696,80.818,80.78,19.60622045]
[1770820943839,5.36086188,80.847,80.75,0.1]
[1770820943840,1.41768696,80.849,80.8,19.60622045]
[1770820944041,1.41768696,80.839,80.787,1.46605651]
[1770820944252,1.41768696,80.839,80.8,19.60622045]
[1770820944453,1.41768696,80.839,80.81,19.60622045]
[1770820944659,1.41768696,80.839,80.8,19.60622045]
[1770820944954,1.41768696,80.855,80.81,19.60622045]
[1770820945251,12.36888976,80.848,80.811,42.62]
[1770820945554,1.41768696,80.859,80.82,19.60622045]
[1770820945851,1.41768696,80.85,80.816,42.6]
[1770820946055,1.41768696,80.85,80.82,19.60622045]
[1770820946455,20.95180652,80.88,80.84,19.60622045]
[1770820946657,1.34558607,80.895,80.86,19.60622045]
[1770820946956,1.34558607,80.889,80.84,20.95750865]
[1770820947144,1.34558607,80.889,80.854,42.58]
[1770820947339,19.60622045,80.88,80.854,42.58]
[1770820947546,1.34558607,80.887,80.854,42.58]
[1770820948157,1.34558607,80.879,80.843,42.56]
[1770820948337,1.34558607,80.879,80.84,19.60622045]
[1770820948542,1.34558607,80.879,80.85,19.60622045]
[1770820948737,1.34558607,80.894,80.86,19.60622045]
[1770820949058,1.34558607,80.909,80.862,1.3512882]
[1770820949234,1.34558607,80.899,80.848,1.3512882]
[1770820949439,1.34558607,80.889,80.85,19.60622045]
[1770820949635,1.34558607,80.889,80.819,49.49325454]
[1770820949636,1.34558607,80.869,80.83,19.60622045]
[1770820949840,1.34558607,80.869,80.792,49.50971998]
[1770820949841,1.34558607,80.883,80.84,19.60622045]
[1770820950038,1.34558607,80.889,80.85,19.60622045]
[1770820950247,1.34558607,80.879,80.845,42.6]
[1770820950454,1.34558607,80.879,80.85,19.60622045]
[1770820950658,1.34558607,80.879,80.84,19.60622045]
[1770820950840,1.34558607,80.879,80.836,42.6]
[1770820951155,1.34558607,80.879,80.84,19.60622045]
[1770820951364,1.34558607,80.879,80.842,12.36980777]
[1770820951554,1.34558607,80.879,80.841,42.58]
[1770820951951,1.34558607,80.88,80.84,19.60622045]
[1770820952160,1.34558607,80.869,80.833,42.56]
[1770820952368,19.60622045,80.86,80.833,42.56]
[1770820952542,1.34558607,80.859,80.82,19.60622045]
[1770820953153,1.34558607,80.859,80.83,19.60622045]
[1770820953364,49.43866025,80.909,80.817,42.52]
[1770820953365,19.60622045,80.85,80.817,42.52]
[1770820953655,1.34558607,80.849,80.82,19.60622045]
[1770820953946,1.34558607,80.839,80.81,42.5]
[1770820954147,1.34558607,80.839,80.81,62.10622045]
[1770820954344,1.34558607,80.839,80.81,19.60622045]
[1770820954545,1.34558607,80.839,80.807,42.5]
[1770820954786,1.34558607,80.839,80.81,19.60622045]
[1770820954965,1.34558607,80.839,80.807,42.5]
[1770820955172,1.34558607,80.839,80.802,42.5]
[1770820955466,1.34558607,80.849,80.802,12.37585833]
[1770820955652,1.34558607,80.849,80.803,42.48]
[1770820955851,1.34558607,80.849,80.81,19.60622045]
[1770820956060,1.34558607,80.839,80.803,42.48]
[1770820956655,1.34558607,80.829,80.803,42.48]
[1770820956968,1.34558607,80.809,80.771,0.0813394]
[1770820957149,1.34558607,80.823,80.79,19.60622045]
[1770820957466,19.60622045,80.83,80.792,12.37746311]
[1770820957775,1.34558607,80.835,80.8,19.60622045]
[1770820957961,19.60622045,80.83,80.792,43.32112089]
[1770820958549,20.95180652,80.83,80.792,12.37746311]
[1770820958757,1.34558607,80.829,80.791,54.85753681]
[1770820959051,1.34558607,80.829,80.765,49.5258222]
[1770820959052,1.34558607,80.809,80.773,42.46]
[1770820959445,12.62146571,80.83,80.791,12.37761631]
[1770820959642,1.34558607,80.828,80.78,12.62146571]
[1770820959867,1.34558607,80.819,80.78,12.62146571]
[1770820960067,1.34558607,80.819,80.79,12.62146571]
[1770820960368,12.62146571,80.83,80.791,42.46]
[1770820960571,24.99315732,80.83,80.792,42.44]
[1770820960766,1.34558607,80.834,80.792,42.44]
[1770820961269,1.34558607,80.833,80.792,42.44]
[1770820961462,1.34558607,80.831,80.778,30.94902077]
[1770820961666,1.34558607,80.831,80.78,12.61726785]
[1770820961864,1.34558607,80.819,80.78,12.61726785]
[1770820962064,13.96285392,80.81,80.779,42.42]
[1770820962247,13.96285392,80.81,80.778,12.3796083]
[1770820962453,1.34558607,80.799,80.772,12.3805279]
[1770820962649,54.84294602,80.838,80.772,12.3805279]
[1770820962650,1.34558607,80.879,80.791,1.3512882]
[1770820962965,1.34558607,80.85,80.82,12.61726785]
[1770820963173,12.61726785,80.86,80.821,42.42]
[1770820963349,1.34558607,80.849,80.821,42.42]
[1770820963544,1.34558607,80.856,80.812,43.7912882]
[1770820963747,12.61726785,80.85,80.813,42.44]
[1770820963946,1.34558607,80.859,80.82,12.61726785]
[1770820964158,1.34558607,80.859,80.82,13.96855605]
[1770820964372,12.61726785,80.85,80.81,12.61726785]
[1770820964562,1.34558607,80.849,80.821,42.44]
[1770820964762,1.34558607,80.839,80.821,42.44]
[1770820964953,1.34558607,80.849,80.821,42.44]
[1770820965156,12.61726785,80.88,80.821,42.44]
[1770820965157,1.34558607,80.839,80.821,42.44]
[1770820965358,1.34558607,80.839,80.805,42.4]
[1770820965558,12.61726785,80.83,80.805,42.4]
[1770820966082,1.34558607,80.829,80.805,42.4]
[1770820966382,43.29646948,80.838,80.784,12.37868884]
[1770820966383,12.61726785,80.82,80.784,12.37868884]
[1770820966556,12.61726785,80.83,80.791,1.3512882]
[1770820966752,12.61726785,80.82,80.791,1.3512882]
[1770820967057,7.55653119,80.9,80.781,42.38]
[1770820967058,12.61726785,80.85,80.811,1.3512882]
[1770820967274,12.61726785,80.83,80.807,42.38]
[1770820967474,12.61726785,80.85,80.811,1.3512882]
[1770820967654,1.34558607,80.879,80.841,1.3512882]
[1770820967855,12.61726785,80.87,80.841,1.3512882]
[1770820968060,12.61726785,80.88,80.841,1.3512882]
[1770820968266,12.61726785,80.88,80.842,42.44]
[1770820968558,12.61726785,80.87,80.842,42.44]
[1770820968758,12.61726785,80.88,80.841,1.3512882]
[1770820969572,43.27452119,80.879,80.843,1.3512882]
[1770820969796,12.36414891,80.879,80.843,1.3512882]
[1770820969968,12.61726785,80.86,80.83,1.3512882]
[1770820970153,1.34558607,80.878,80.832,1.3512882]
[1770820970358,12.61726785,80.87,80.834,1.16215877]
[1770820970774,12.36414891,80.879,80.834,1.16215877]
[1770820971254,19.66013441,80.87,80.834,1.16215877]
[1770820971459,19.66013441,80.87,80.836,1.16215877]
[1770820971669,12.36480964,80.875,80.836,1.16215877]
[1770820971877,19.66013441,80.87,80.841,1.16215877]
[1770820972272,19.66013441,80.86,80.835,42.4]
[1770820972770,19.66013441,80.87,80.836,13.53288468]
[1770820972957,19.66013441,80.87,80.837,1.16215877]
[1770820973159,12.36414891,80.879,80.837,1.16215877]
[1770820973388,12.36414891,80.879,80.841,1.16215877]
[1770820973569,12.36414891,80.879,80.84,19.66013441]
[1770820973570,12.36414891,80.879,80.843,1.16215877]
[1770820973873,12.36414891,80.879,80.842,12.36980777]
[1770820973874,19.66013441,80.89,80.861,1.16215877]
[1770820974085,19.66013441,80.88,80.861,1.16215877]
[1770820974275,19.66013441,80.89,80.851,1.16215877]
[1770820974665,19.66013441,80.88,80.851,1.16215877]
[1770820974869,19.66013441,80.89,80.851,1.16215877]
[1770820975078,19.66013441,80.88,80.849,42.36]
[1770820975467,19.66013441,80.88,80.844,1.16215877]
[1770820975782,19.66013441,80.88,80.846,1.16215877]
[1770820976485,19.66013441,80.88,80.847,1.16215877]
[1770820977486,12.36170344,80.895,80.851,1.16215877]
[1770820977783,19.66013441,80.92,80.881,1.16215877]
[1770820977960,19.66013441,80.91,80.881,1.16215877]
[1770820978161,19.66013441,80.92,80.881,1.16215877]
[1770820978683,0.2,80.93,80.881,1.16215877]
[1770820978865,19.66013441,80.92,80.891,1.16215877]
[1770820979065,32.216635,80.93,80.891,1.16215877]
[1770820979267,0.2,80.93,80.901,1.16215877]
[1770820979474,46.9,80.95,80.852,303.02280708]
[1770820979475,19.66013441,80.95,80.911,1.16215877]
[1770820979681,19.66013441,80.95,80.91,19.66013441]
[1770820979682,19.66013441,80.95,80.913,1.16215877]
[1770820979862,19.66013441,80.96,80.915,1.16215877]
[1770820980066,19.66013441,80.96,80.921,1.16215877]
[1770820980265,19.66013441,80.94,80.914,42.32]
[1770820980467,19.66013441,80.94,80.908,1.16215877]
[1770820980768,12.35101587,80.965,80.921,1.16215877]
[1770820980967,19.66013441,80.96,80.921,1.16215877]
[1770820981185,19.66013441,80.96,80.931,1.16215877]
[1770820981388,1.116566,80.977,80.931,1.16215877]
[1770820981586,12.34766073,80.987,80.943,1.16215877]
[1770820981788,19.66013441,80.98,80.943,1.16215877]
[1770820982170,19.66013441,80.97,80.943,1.16215877]
[1770820982374,19.66013441,80.97,80.942,42.32]
[1770820982570,19.66013441,80.98,80.943,1.16215877]
[1770820982890,43.21681256,80.987,80.951,1.16215877]
[1770820982891,12.34766073,80.987,80.951,1.16215877]
[1770820983091,19.66013441,80.97,80.942,42.32]